[Event "RUS-ch Women Blitz 2019"]
[Site "Sochi"]
[Date "2019.10.17"]
[Round "1.1"]
[White "Bodnaruk, Anastasia"]
[Black "Trapeznikova, Darya"]
[Result "1-0"]
[ECO "C78"]
[WhiteElo "2419"]
[BlackElo "2065"]
[Annotator "NA RC"]
[PlyCount "88"]
[EventDate "2019.10.17"]
[EventType "swiss"]
[EventCountry "RUS"]
[SourceTitle "playchess.com"]
[Source "ChessBase"]
[SourceQuality "1"]
[TimeControl "180+2"]

1. e4 {[%emt 0:00:00]} e5 {[%emt 0:00:00]} 2. Nf3 {[%emt 0:00:00]} Nc6 {[%emt 0:00:00]} 3. Bb5 {[%emt 0:00:01]} a6 4. Ba4 Nf6 {[%emt 0:00:02]} 5. O-O {[%emt 0:00:01]} b5 {[%emt 0:00:01]} 6. Bb3 {[%emt 0:00:01]} Bb7 {[%emt 0:00:03]} 7. Re1 {[%emt 0:00:02]} Bc5 {[%emt 0:00:01]} 8. c3 {[%emt 0:00:01]} d6 {[%emt 0:00:01]} 9. d4 {[%emt 0:00:02]} Bb6 {[%emt 0:00:01]} 10. Be3 {[%emt 0:00:02]} O-O {[%emt 0:00:03]} 11. Nbd2 {[%emt 0:00:01]} h6 {[%emt 0:00:08]} 12. h3 {[%emt 0:00:06]} Re8 {[%emt 0:00:02]} 13. d5 {[%emt 0:00:03]} Ne7 {[%emt 0:00:04]} 14. Bxb6 {[%emt 0:00:07]} cxb6 {[%emt 0:00:01]} 15. Bc2 {[%emt 0:00:10]} Ng6 {[%emt 0:00:09]} 16. Bd3 {[%emt 0:00:11]} Nd7 {[%emt 0:00:07]} 17. g3 {[%emt 0:00:17]} Nc5 {[%emt 0:00:13]} 18. Bf1 {[%emt 0:00:08]} Rc8 {[%emt 0:00:08]} 19. Rc1 {[%emt 0:00:07]} Qd7 {[%emt 0:00:41]} 20. Qc2 {[%emt 0:00:21]} a5 {[%emt 0:00:21]} 21. Bg2 {[%emt 0:00:05]} Ba6 {[%emt 0:00:18]} 22. Nf1 {[%emt 0:00:07]} b4 {[%emt 0:00:03]} 23. c4 {[%emt 0:00:03]} b5 {[%emt 0:00:06]} 24. Ne3 {[%emt 0:00:23]} bxc4 {[%emt 0:00:10]} 25. Nxc4 {[%emt 0:00:01]} Na4 {[%emt 0:00:11]} 26. Nfd2 {[%emt 0:00:03]} Rc5 {[%emt 0:00:15]} 27. b3 {[%emt 0:00:07]} Nc3 {[%emt 0:00:01]} 28. a4 {[%emt 0:00:12]} Ne7 {[%emt 0:00:14]} 29. f4 {[%emt 0:00:07]} exf4 {[%emt 0:00:03]} 30. gxf4 {[%emt 0:00:01]} Ng6 {[%emt 0:00:06]} 31. f5 {[%emt 0:00:06]} Ne5 {[%emt 0:00:06]} 32. Nf3 {[%emt 0:00:43]} Nxc4 {[%emt 0:00:04]} 33. bxc4 {[%emt 0:00:00]} Bxc4 {[%emt 0:00:03]} 34. Qd2 {[%emt 0:00:08]} Nxa4 {[%emt 0:00:07]} 35. Nd4 {[%emt 0:00:04]} Ba6 {[%emt 0:00:05]} 36. Nc6 {[%emt 0:00:08]} Rxc1 37. Rxc1 {[%emt 0:00:01]} Bb5 {[%emt 0:00:05]} 38. Nd4 {[%emt 0:00:01]} Nc3 {[%emt 0:00:02]} 39. Kh2 {[%emt 0:00:04]} Qa7 {[%emt 0:00:01]} 40. f6 {[%emt 0:00:07]} a4 {[%emt 0:00:02]} 41. Qf2 {[%emt 0:00:04]} Nxe4 {[%emt 0:00:09]} 42. Bxe4 {[%emt 0:00:03]} Rxe4 {[%emt 0:00:01]} 43. Qg2 {[%emt 0:00:01]} g6 {[%emt 0:00:05]} 44. Qxe4 a3 {[%emt 0:00:05]} 1-0

[Event "RUS-ch Women Blitz 2019"]
[Site "Sochi"]
[Date "2019.10.20"]
[Round "1.2"]
[White "Absalyamova, Karina"]
[Black "Vifleemskaia, Svetlana"]
[Result "0-1"]
[ECO "A34"]
[WhiteElo "1945"]
[BlackElo "1978"]
[Annotator "NA"]
[PlyCount "88"]
[EventDate "2019.10.17"]
[EventType "swiss"]
[EventCountry "RUS"]
[SourceTitle "playchess.com"]
[Source "ChessBase"]
[SourceQuality "1"]
[TimeControl "180+2"]

1. c4 {[%emt 0:00:00]} c5 {[%emt 0:00:00]} 2. Nc3 {[%emt 0:00:00]} Nf6 {[%emt 0:00:01]} 3. e4 {[%emt 0:00:03]} Nc6 {[%emt 0:00:04]} 4. g3 {[%emt 0:00:01]} g6 {[%emt 0:00:01]} 5. Bg2 {[%emt 0:00:01]} Bg7 {[%emt 0:00:01]} 6. d3 {[%emt 0:00:01]} O-O {[%emt 0:00:10]} 7. Nge2 {[%emt 0:00:01]} d6 {[%emt 0:00:03]} 8. O-O {[%emt 0:00:02]} Ne8 {[%emt 0:00:04]} 9. Be3 {[%emt 0:00:05]} Nd4 {[%emt 0:00:19]} 10. h3 {[%emt 0:00:08]} Nc7 {[%emt 0:00:05]} 11. Kh2 {[%emt 0:00:02]} Rb8 {[%emt 0:00:04]} 12. a4 {[%emt 0:00:11]} b6 {[%emt 0:00:15]} 13. f4 {[%emt 0:00:03]} f5 {[%emt 0:00:04]} 14. Rc1 {[%emt 0:00:37]} a6 {[%emt 0:00:05]} 15. Bxd4 {[%emt 0:01:04]} cxd4 {[%emt 0:00:03]} 16. Nd5 {[%emt 0:00:02]} e6 {[%emt 0:00:33]} 17. Nb4 {[%emt 0:00:06]} Bd7 {[%emt 0:00:06]} 18. b3 {[%emt 0:00:04]} a5 {[%emt 0:00:08]} 19. Nc2 {[%emt 0:00:02]} e5 {[%emt 0:00:01]} 20. Qe1 {[%emt 0:00:13]} Na6 {[%emt 0:00:07]} 21. Qf2 {[%emt 0:00:03]} Nc5 {[%emt 0:00:01]} 22. Qf3 {[%emt 0:00:20]} fxe4 {[%emt 0:00:09]} 23. dxe4 {[%emt 0:00:05]} d3 {[%emt 0:00:00]} 24. Qe3 {[%emt 0:00:13]} dxe2 {[%emt 0:00:05]} 25. Qxe2 {[%emt 0:00:02]} Nxb3 {[%emt 0:00:01]} 26. Rb1 {[%emt 0:00:04]} Nc5 {[%emt 0:00:02]} 27. Rbd1 {[%emt 0:00:06]} Bxa4 {[%emt 0:00:09]} 28. Rd5 {[%emt 0:00:06]} Bxc2 {[%emt 0:00:05]} 29. Qxc2 {[%emt 0:00:01]} Ne6 {[%emt 0:00:02]} 30. Rfd1 {[%emt 0:00:03]} Nd4 {[%emt 0:00:01]} 31. Qa4 {[%emt 0:00:05]} Qe8 {[%emt 0:00:01]} 32. Qa2 {[%emt 0:00:02]} Qc6 {[%emt 0:00:01]} 33. fxe5 {[%emt 0:00:02]} dxe5 {[%emt 0:00:05]} 34. c5 {[%emt 0:00:02]} Kh8 {[%emt 0:00:05]} 35. cxb6 {[%emt 0:00:02]} Qxb6 {[%emt 0:00:02]} 36. Qa3 {[%emt 0:00:03]} Qb4 {[%emt 0:00:02]} 37. Qa1 {[%emt 0:00:01]} a4 {[%emt 0:00:03]} 38. Qc1 {[%emt 0:00:03]} a3 {[%emt 0:00:05]} 39. Qc7 {[%emt 0:00:01]} Rb7 {[%emt 0:00:04]} 40. Qc1 {[%emt 0:00:04]} a2 {[%emt 0:00:01]} 41. Bf1 {[%emt 0:00:03]} Qb2+ {[%emt 0:00:01]} 42. Qxb2 {[%emt 0:00:02]} Rxb2+ {[%emt 0:00:00]} 43. Kg1 {[%emt 0:00:00]} Rb1 {[%emt 0:00:01]} 44. Rxb1 {[%emt 0:00:06]} axb1=Q 0-1

[Event "RUS-ch Women Blitz 2019"]
[Site "Sochi"]
[Date "2019.10.17"]
[Round "1.3"]
[White "Maltsevskaya, Aleksandra"]
[Black "Serditykh, Olesya"]
[Result "1-0"]
[ECO "C00"]
[WhiteElo "2333"]
[BlackElo "1990"]
[Annotator "NA"]
[PlyCount "46"]
[EventDate "2019.10.17"]
[EventType "swiss"]
[EventCountry "RUS"]
[SourceTitle "playchess.com"]
[Source "ChessBase"]
[SourceQuality "1"]
[TimeControl "180+2"]

1. e4 {[%emt 0:00:01]} e6 {[%emt 0:00:00]} 2. d3 {[%emt 0:00:02]} c5 {[%emt 0:00:15]} 3. g3 {[%emt 0:00:04]} Nc6 {[%emt 0:00:02]} 4. Bg2 {[%emt 0:00:02]} g6 {[%emt 0:00:04]} 5. Nf3 {[%emt 0:00:09]} Bg7 {[%emt 0:00:01]} 6. O-O {[%emt 0:00:02]} Nge7 {[%emt 0:00:01]} 7. Nbd2 {[%emt 0:00:03]} O-O {[%emt 0:00:05]} 8. Re1 {[%emt 0:00:04]} d6 {[%emt 0:00:08]} 9. Nc4 {[%emt 0:00:19]} b5 {[%emt 0:00:26]} 10. Ne3 {[%emt 0:00:03]} Rb8 {[%emt 0:00:01]} 11. a4 {[%emt 0:00:05]} a6 {[%emt 0:00:15]} 12. axb5 {[%emt 0:00:03]} axb5 {[%emt 0:00:01]} 13. h4 {[%emt 0:00:05]} e5 {[%emt 0:00:51]} 14. h5 {[%emt 0:00:08]} Nd4 {[%emt 0:00:05]} 15. c3 {[%emt 0:00:06]} Ne6 {[%emt 0:00:07]} 16. hxg6 {[%emt 0:00:09]} hxg6 {[%emt 0:00:35]} 17. Kh2 {[%emt 0:00:09]} f5 {[%emt 0:00:03]} 18. Nd5 {[%emt 0:00:11]} f4 {[%emt 0:00:14]} 19. Nh4 {[%emt 0:00:23]} Nxd5 {[%emt 0:00:13]} 20. exd5 {[%emt 0:00:01]} Ng5 {[%emt 0:00:01]} 21. gxf4 {[%emt 0:00:13]} exf4 {[%emt 0:00:06]} 22. Ra7 {[%emt 0:00:03]} f3 {[%emt 0:00:05]} 23. Nxg6 {[%emt 0:00:42]} Rf6 {[%emt 0:00:07]} 1-0

[Event "RUS-ch Women Blitz 2019"]
[Site "Sochi"]
[Date "2019.10.20"]
[Round "1.4"]
[White "Baiburina, Kamilla"]
[Black "Zavivaeva, Evelina"]
[Result "0-1"]
[ECO "C50"]
[WhiteElo "1966"]
[BlackElo "1305"]
[Annotator "NA"]
[PlyCount "58"]
[EventDate "2019.10.17"]
[EventType "swiss"]
[EventCountry "RUS"]
[SourceTitle "playchess.com"]
[Source "ChessBase"]
[SourceQuality "1"]
[TimeControl "180+2"]

1. e4 {[%emt 0:00:00]} e5 {[%emt 0:00:00]} 2. Nf3 {[%emt 0:00:00]} Nc6 3. d4 exd4 {[%emt 0:00:04]} 4. Bc4 {[%emt 0:00:01]} Be7 {[%emt 0:00:37]} 5. c3 {[%emt 0:00:02]} dxc3 {[%emt 0:00:06]} 6. Qd5 {[%emt 0:00:02]} Nh6 {[%emt 0:01:01]} 7. Bxh6 {[%emt 0:00:02]} O-O {[%emt 0:00:02]} 8. Nxc3 {[%emt 0:01:03]} gxh6 {[%emt 0:00:13]} 9. Qh5 {[%emt 0:00:30]} Bf6 {[%emt 0:00:36]} 10. e5 {[%emt 0:00:50]} Bg7 {[%emt 0:00:26]} 11. O-O {[%emt 0:00:09]} d6 {[%emt 0:00:03]} 12. Rad1 {[%emt 0:00:10]} Qe7 {[%emt 0:00:12]} 13. Nd5 {[%emt 0:00:05]} Qd8 {[%emt 0:00:02]} 14. exd6 {[%emt 0:00:15]} cxd6 {[%emt 0:00:01]} 15. b3 {[%emt 0:00:08]} Be6 {[%emt 0:00:01]} 16. Ne3 {[%emt 0:00:04]} Bxc4 {[%emt 0:00:02]} 17. Nxc4 {[%emt 0:00:01]} d5 {[%emt 0:00:03]} 18. Rxd5 {[%emt 0:00:01]} Qf6 {[%emt 0:00:02]} 19. Rf5 {[%emt 0:00:03]} Qg6 {[%emt 0:00:02]} 20. Qxg6 {[%emt 0:00:02]} hxg6 {[%emt 0:00:01]} 21. Rd5 {[%emt 0:00:01]} Kh7 {[%emt 0:00:01]} 22. Nd6 {[%emt 0:00:00]} Rad8 {[%emt 0:00:02]} 23. Rfd1 {[%emt 0:00:01]} Rd7 {[%emt 0:00:01]} 24. Nxb7 {[%emt 0:00:01]} Rxb7 25. Rd6 Ne5 {[%emt 0:00:05]} 26. Nxe5 {[%emt 0:00:02]} Bxe5 {[%emt 0:00:01]} 27. g3 {[%emt 0:00:01]} Bxd6 {[%emt 0:00:01]} 28. Rxd6 {[%emt 0:00:00]} Rc8 {[%emt 0:00:01]} 29. Kg2 {[%emt 0:00:00]} Rc2 {[%emt 0:00:03]} 0-1

[Event "RUS-ch Women Blitz 2019"]
[Site "Sochi"]
[Date "2019.10.17"]
[Round "1.5"]
[White "Ambartsumova, Karina"]
[Black "Belkova, Diana"]
[Result "1-0"]
[ECO "A35"]
[WhiteElo "2341"]
[BlackElo "2030"]
[Annotator "NA"]
[PlyCount "55"]
[EventDate "2019.10.17"]
[EventType "swiss"]
[EventCountry "RUS"]
[SourceTitle "playchess.com"]
[Source "ChessBase"]
[SourceQuality "1"]
[TimeControl "180+2"]

1. Nf3 {[%emt 0:00:00]} Nf6 {[%emt 0:00:00]} 2. c4 {[%emt 0:00:02]} c5 {[%emt 0:00:01]} 3. Nc3 {[%emt 0:00:03]} Nc6 {[%emt 0:00:01]} 4. d4 {[%emt 0:00:01]} cxd4 {[%emt 0:00:01]} 5. Nxd4 {[%emt 0:00:01]} d6 {[%emt 0:00:05]} 6. g3 {[%emt 0:00:13]} g6 {[%emt 0:00:02]} 7. Bg2 {[%emt 0:00:02]} Bd7 {[%emt 0:00:01]} 8. O-O {[%emt 0:00:14]} Bg7 {[%emt 0:00:01]} 9. Nc2 {[%emt 0:00:01]} Qc8 {[%emt 0:00:01]} 10. Re1 {[%emt 0:00:11]} Bh3 {[%emt 0:00:02]} 11. Bh1 {[%emt 0:00:01]} h5 {[%emt 0:00:04]} 12. Nd5 {[%emt 0:00:14]} h4 {[%emt 0:00:29]} 13. Bg5 {[%emt 0:00:22]} hxg3 {[%emt 0:00:53]} 14. hxg3 {[%emt 0:00:02]} Nxd5 {[%emt 0:00:05]} 15. cxd5 {[%emt 0:00:05]} Ne5 {[%emt 0:00:01]} 16. Ne3 {[%emt 0:00:14]} Ng4 {[%emt 0:00:13]} 17. Qa4+ {[%emt 0:00:08]} Kf8 {[%emt 0:00:02]} 18. Rac1 {[%emt 0:00:01]} Nxe3 {[%emt 0:01:24]} 19. Rxc8+ {[%emt 0:00:04]} Rxc8 {[%emt 0:00:01]} 20. Bxe3 {[%emt 0:00:05]} Be5 {[%emt 0:00:08]} 21. Rc1 {[%emt 0:00:14]} Kg7 {[%emt 0:00:01]} 22. Bg2 {[%emt 0:00:12]} Bf5 {[%emt 0:00:01]} 23. Rxc8 {[%emt 0:00:05]} Rxc8 {[%emt 0:00:00]} 24. Bd4 {[%emt 0:00:04]} Rc1+ {[%emt 0:00:07]} 25. Kh2 {[%emt 0:00:01]} f6 {[%emt 0:00:01]} 26. Bxe5 {[%emt 0:00:03]} fxe5 {[%emt 0:00:01]} 27. Qxa7 {[%emt 0:00:02]} Kf6 {[%emt 0:00:03]} 28. Qxb7 {[%emt 0:00:03]} 1-0

[Event "RUS-ch Women Blitz 2019"]
[Site "Sochi"]
[Date "2019.10.20"]
[Round "1.6"]
[White "But, Svetlana"]
[Black "Ovod, Evgenija"]
[Result "1-0"]
[ECO "A60"]
[WhiteElo "1947"]
[BlackElo "2347"]
[Annotator "NA"]
[PlyCount "107"]
[EventDate "2019.10.17"]
[EventType "swiss"]
[EventCountry "RUS"]
[SourceTitle "playchess.com"]
[Source "ChessBase"]
[SourceQuality "1"]
[TimeControl "180+2"]

1. d4 {[%emt 0:00:00]} Nf6 {[%emt 0:00:00]} 2. c4 {[%emt 0:00:00]} c5 {[%emt 0:00:00]} 3. d5 {[%emt 0:00:01]} e6 {[%emt 0:00:00]} 4. dxe6 {[%emt 0:00:02]} fxe6 {[%emt 0:00:04]} 5. Nc3 {[%emt 0:00:06]} d5 {[%emt 0:00:03]} 6. cxd5 {[%emt 0:00:01]} exd5 {[%emt 0:00:01]} 7. e3 {[%emt 0:00:02]} Nc6 {[%emt 0:00:03]} 8. Bb5 {[%emt 0:00:01]} Be7 {[%emt 0:00:07]} 9. Nf3 {[%emt 0:00:04]} O-O {[%emt 0:00:02]} 10. O-O {[%emt 0:00:03]} Bg4 {[%emt 0:00:04]} 11. Be2 {[%emt 0:00:03]} a6 {[%emt 0:00:10]} 12. h3 {[%emt 0:00:01]} Bh5 {[%emt 0:00:02]} 13. a4 {[%emt 0:00:17]} Qd6 {[%emt 0:00:03]} 14. Qb3 {[%emt 0:00:14]} Na5 {[%emt 0:00:10]} 15. Qd1 {[%emt 0:00:12]} Rad8 {[%emt 0:00:03]} 16. Nh4 {[%emt 0:00:33]} Bxe2 {[%emt 0:00:07]} 17. Qxe2 {[%emt 0:00:02]} Qe5 {[%emt 0:00:10]} 18. Nf3 {[%emt 0:00:02]} Qf5 {[%emt 0:00:07]} 19. Nh4 {[%emt 0:00:09]} Qe6 {[%emt 0:00:06]} 20. Nf3 {[%emt 0:00:08]} Bd6 {[%emt 0:00:05]} 21. Rd1 {[%emt 0:00:05]} Bb8 {[%emt 0:00:09]} 22. Qc2 {[%emt 0:00:09]} h6 {[%emt 0:00:17]} 23. Ne2 {[%emt 0:00:01]} Ne4 {[%emt 0:00:06]} 24. Nc3 {[%emt 0:00:14]} Nc6 {[%emt 0:00:28]} 25. Bd2 {[%emt 0:00:03]} Nb4 {[%emt 0:00:30]} 26. Qb1 {[%emt 0:00:14]} Nc6 {[%emt 0:00:14]} 27. Be1 {[%emt 0:00:05]} Nf6 {[%emt 0:00:28]} 28. Qc2 {[%emt 0:00:10]} Ne5 {[%emt 0:00:02]} 29. Nxe5 {[%emt 0:00:16]} Qxe5 {[%emt 0:00:01]} 30. g3 {[%emt 0:00:01]} Nh7 {[%emt 0:00:04]} 31. Qb3 {[%emt 0:00:11]} c4 {[%emt 0:00:06]} 32. Qxb7 {[%emt 0:00:04]} Rf7 {[%emt 0:00:04]} 33. Qc6 {[%emt 0:00:09]} Rf6 {[%emt 0:00:05]} 34. Qc5 {[%emt 0:00:06]} Ng5 {[%emt 0:00:02]} 35. Rxd5 {[%emt 0:00:05]} Nf3+ {[%emt 0:00:01]} 36. Kg2 {[%emt 0:00:05]} Nxe1+ {[%emt 0:00:03]} 37. Rxe1 {[%emt 0:00:00]} Qe6 {[%emt 0:00:02]} 38. Rxd8+ {[%emt 0:00:02]} Kh7 {[%emt 0:00:01]} 39. Qd5 {[%emt 0:00:03]} Qe7 {[%emt 0:00:01]} 40. Rd7 {[%emt 0:00:02]} Qf8 {[%emt 0:00:01]} 41. Rd8 {[%emt 0:00:01]} Rxf2+ {[%emt 0:00:01]} 42. Kg1 {[%emt 0:00:01]} Qf6 {[%emt 0:00:01]} 43. Ne4 {[%emt 0:00:05]} Qf3 {[%emt 0:00:02]} 44. Nxf2 {[%emt 0:00:01]} Qxg3+ {[%emt 0:00:01]} 45. Qg2 {[%emt 0:00:01]} Qe5 {[%emt 0:00:01]} 46. Rd7 {[%emt 0:00:02]} Bd6 {[%emt 0:00:02]} 47. Qe4+ {[%emt 0:00:02]} Kg8 {[%emt 0:00:02]} 48. Qxe5 Bxe5 {[%emt 0:00:00]} 49. Re7 {[%emt 0:00:01]} Bxb2 {[%emt 0:00:02]} 50. Re6 {[%emt 0:00:01]} c3 {[%emt 0:00:01]} 51. Rc6 {[%emt 0:00:01]} a5 {[%emt 0:00:01]} 52. Nd3 {[%emt 0:00:01]} Kf7 {[%emt 0:00:01]} 53. Nxb2 {[%emt 0:00:01]} cxb2 54. Rb1 1-0

[Event "RUS-ch Women Blitz 2019"]
[Site "Sochi"]
[Date "2019.10.20"]
[Round "1.11"]
[White "Guseva, Marina"]
[Black "Yakimova, Mariya"]
[Result "1-0"]
[ECO "A90"]
[WhiteElo "2366"]
[BlackElo "2276"]
[Annotator "NA"]
[PlyCount "157"]
[EventDate "2019.10.17"]
[EventType "swiss"]
[EventCountry "RUS"]
[SourceTitle "playchess.com"]
[Source "ChessBase"]
[SourceQuality "1"]
[TimeControl "180+2"]

1. d4 {[%emt 0:00:00]} f5 {[%emt 0:00:00]} 2. c4 {[%emt 0:00:01]} Nf6 {[%emt 0:00:00]} 3. g3 {[%emt 0:00:01]} e6 {[%emt 0:00:00]} 4. Bg2 {[%emt 0:00:02]} d5 {[%emt 0:00:01]} 5. Nh3 {[%emt 0:00:03]} c6 {[%emt 0:00:01]} 6. Qc2 {[%emt 0:00:04]} Bd6 {[%emt 0:00:02]} 7. O-O {[%emt 0:00:02]} O-O {[%emt 0:00:01]} 8. Bf4 {[%emt 0:00:02]} Be7 {[%emt 0:00:01]} 9. Nd2 {[%emt 0:00:08]} h6 {[%emt 0:00:03]} 10. Bxb8 {[%emt 0:00:01]} Rxb8 {[%emt 0:00:01]} 11. Nf4 {[%emt 0:00:04]} Ne4 {[%emt 0:00:13]} 12. Nf3 {[%emt 0:00:08]} Bf6 {[%emt 0:00:08]} 13. Ng6 {[%emt 0:00:16]} Re8 {[%emt 0:00:07]} 14. Nge5 {[%emt 0:00:04]} g5 {[%emt 0:00:08]} 15. Rad1 {[%emt 0:00:42]} Bd7 {[%emt 0:00:06]} 16. e3 {[%emt 0:00:08]} Rf8 {[%emt 0:00:08]} 17. Nd3 {[%emt 0:00:05]} Be8 {[%emt 0:00:08]} 18. Nfe5 {[%emt 0:00:02]} Nd6 {[%emt 0:00:13]} 19. c5 {[%emt 0:00:09]} Nf7 {[%emt 0:00:01]} 20. f3 {[%emt 0:00:04]} Qc7 {[%emt 0:00:14]} 21. Ng6 {[%emt 0:00:02]} e5 {[%emt 0:00:14]} 22. Nxf8 {[%emt 0:00:07]} Kxf8 {[%emt 0:00:03]} 23. e4 {[%emt 0:00:02]} exd4 {[%emt 0:00:08]} 24. exf5 {[%emt 0:00:14]} Bd7 {[%emt 0:00:01]} 25. Bh3 {[%emt 0:00:11]} Re8 {[%emt 0:00:21]} 26. f4 {[%emt 0:00:01]} Re3 {[%emt 0:00:17]} 27. fxg5 {[%emt 0:00:04]} Nxg5 {[%emt 0:00:02]} 28. Bg2 {[%emt 0:00:02]} Ne4 {[%emt 0:00:08]} 29. Nf4 {[%emt 0:00:02]} Kf7 {[%emt 0:00:09]} 30. Ne6 {[%emt 0:00:13]} Qe5 {[%emt 0:00:06]} 31. Nxd4 {[%emt 0:00:05]} Be7 {[%emt 0:00:27]} 32. b4 {[%emt 0:00:02]} Ng5 {[%emt 0:00:12]} 33. Qf2 {[%emt 0:00:09]} Bf6 {[%emt 0:00:08]} 34. Rfe1 {[%emt 0:00:03]} Rxe1+ {[%emt 0:00:03]} 35. Rxe1 {[%emt 0:00:08]} Qxd4 {[%emt 0:00:01]} 36. Kf1 {[%emt 0:00:00]} Qxf2+ {[%emt 0:00:03]} 37. Kxf2 {[%emt 0:00:01]} Bxf5 {[%emt 0:00:01]} 38. Ke3 {[%emt 0:00:17]} Bc3 {[%emt 0:00:03]} 39. Rf1 {[%emt 0:00:01]} Kg6 {[%emt 0:00:05]} 40. a3 {[%emt 0:00:01]} Bb2 {[%emt 0:00:01]} 41. h4 {[%emt 0:00:03]} Ne6 {[%emt 0:00:02]} 42. h5+ {[%emt 0:00:02]} Kg5 {[%emt 0:00:02]} 43. b5 {[%emt 0:00:03]} Bd4+ {[%emt 0:00:02]} 44. Kd2 {[%emt 0:00:01]} Nxc5 {[%emt 0:00:06]} 45. bxc6 {[%emt 0:00:02]} bxc6 {[%emt 0:00:01]} 46. Bf3 {[%emt 0:00:02]} Nb3+ {[%emt 0:00:02]} 47. Kd1 {[%emt 0:00:02]} Bd3 {[%emt 0:00:02]} 48. Be2 {[%emt 0:00:02]} Bf5 {[%emt 0:00:04]} 49. Rf4 {[%emt 0:00:05]} Be5 {[%emt 0:00:05]} 50. Rb4 {[%emt 0:00:01]} Nd4 {[%emt 0:00:02]} 51. g4 {[%emt 0:00:02]} Kf4 {[%emt 0:00:01]} 52. Ra4 {[%emt 0:00:01]} Ke3 {[%emt 0:00:01]} 53. gxf5 {[%emt 0:00:02]} Nxf5 {[%emt 0:00:02]} 54. Bg4 {[%emt 0:00:04]} Ng3 {[%emt 0:00:02]} 55. Rxa7 {[%emt 0:00:01]} d4 {[%emt 0:00:01]} 56. Re7 {[%emt 0:00:03]} Kf4 {[%emt 0:00:01]} 57. Be2 {[%emt 0:00:03]} c5 {[%emt 0:00:02]} 58. a4 {[%emt 0:00:02]} Ne4 {[%emt 0:00:04]} 59. Bd3 {[%emt 0:00:05]} Nc3+ {[%emt 0:00:01]} 60. Kc2 {[%emt 0:00:01]} Nd5 {[%emt 0:00:01]} 61. Rf7+ {[%emt 0:00:02]} Ke3 {[%emt 0:00:01]} 62. Bc4 {[%emt 0:00:03]} Nb4+ {[%emt 0:00:01]} 63. Kb3 {[%emt 0:00:01]} d3 {[%emt 0:00:02]} 64. Rd7 {[%emt 0:00:02]} d2 {[%emt 0:00:01]} 65. Be6 {[%emt 0:00:03]} Bd4 {[%emt 0:00:07]} 66. Bg4 {[%emt 0:00:02]} Kf2 {[%emt 0:00:03]} 67. a5 {[%emt 0:00:01]} Ke1 {[%emt 0:00:02]} 68. Rxd4 {[%emt 0:00:03]} cxd4 {[%emt 0:00:02]} 69. Kxb4 {[%emt 0:00:01]} d3 {[%emt 0:00:03]} 70. a6 {[%emt 0:00:01]} d1=Q {[%emt 0:00:02]} 71. Bxd1 {[%emt 0:00:01]} Kxd1 {[%emt 0:00:01]} 72. a7 {[%emt 0:00:01]} d2 {[%emt 0:00:00]} 73. a8=Q {[%emt 0:00:02]} Ke1 {[%emt 0:00:01]} 74. Qh1+ {[%emt 0:00:02]} Ke2 {[%emt 0:00:01]} 75. Qg2+ {[%emt 0:00:01]} Ke1 {[%emt 0:00:01]} 76. Qe4+ {[%emt 0:00:02]} Kf1 {[%emt 0:00:01]} 77. Qf3+ {[%emt 0:00:01]} Ke1 {[%emt 0:00:01]} 78. Qe3+ Kd1 79. Qxh6 {[%emt 0:00:09]} 1-0

[Event "RUS-ch Women Blitz 2019"]
[Site "Sochi"]
[Date "2019.10.17"]
[Round "1.11"]
[White "Chernyak, Viktoria"]
[Black "Pavlova, Natalia"]
[Result "1-0"]
[ECO "A04"]
[WhiteElo "2284"]
[BlackElo "1947"]
[Annotator "NA"]
[PlyCount "67"]
[EventDate "2019.10.17"]
[EventType "swiss"]
[EventCountry "RUS"]
[SourceTitle "playchess.com"]
[Source "ChessBase"]
[SourceQuality "1"]
[TimeControl "180+2"]

1. Nf3 {[%emt 0:00:00]} c5 {[%emt 0:00:00]} 2. c4 {[%emt 0:00:01]} Nc6 {[%emt 0:00:00]} 3. Nc3 {[%emt 0:00:01]} g6 {[%emt 0:00:01]} 4. e3 {[%emt 0:00:02]} Bg7 {[%emt 0:00:02]} 5. d4 {[%emt 0:00:01]} d6 {[%emt 0:00:09]} 6. d5 {[%emt 0:00:03]} Ne5 {[%emt 0:00:05]} 7. Nxe5 {[%emt 0:00:04]} Bxe5 {[%emt 0:00:02]} 8. Bd3 {[%emt 0:00:05]} Bg7 {[%emt 0:00:13]} 9. O-O {[%emt 0:00:02]} Nf6 {[%emt 0:00:01]} 10. e4 {[%emt 0:00:09]} O-O {[%emt 0:00:02]} 11. h3 {[%emt 0:00:11]} e5 {[%emt 0:00:03]} 12. dxe6 {[%emt 0:00:05]} Bxe6 {[%emt 0:00:02]} 13. Bf4 {[%emt 0:00:10]} Nd7 {[%emt 0:00:27]} 14. Rc1 {[%emt 0:00:08]} Ne5 {[%emt 0:00:04]} 15. b3 {[%emt 0:00:08]} Nc6 {[%emt 0:00:17]} 16. Nb5 {[%emt 0:00:20]} Nd4 {[%emt 0:00:06]} 17. Nxd6 {[%emt 0:00:18]} Qd7 {[%emt 0:00:17]} 18. e5 {[%emt 0:00:15]} h6 {[%emt 0:00:14]} 19. Ne4 {[%emt 0:00:17]} Kh8 {[%emt 0:00:29]} 20. Nxc5 {[%emt 0:00:04]} Qc6 {[%emt 0:00:06]} 21. Nxe6 {[%emt 0:00:20]} Nxe6 {[%emt 0:00:02]} 22. Bg3 {[%emt 0:00:07]} Rad8 {[%emt 0:00:04]} 23. Qe2 {[%emt 0:00:05]} Nc5 {[%emt 0:00:03]} 24. Bb1 {[%emt 0:00:03]} Rfe8 {[%emt 0:00:03]} 25. Kh2 {[%emt 0:00:16]} Nd7 {[%emt 0:00:01]} 26. f4 {[%emt 0:00:01]} Nc5 {[%emt 0:00:05]} 27. Rfd1 {[%emt 0:00:11]} Ne6 {[%emt 0:00:08]} 28. Rxd8 {[%emt 0:00:03]} Rxd8 {[%emt 0:00:00]} 29. Rd1 {[%emt 0:00:02]} Nd4 {[%emt 0:00:02]} 30. Qe1 {[%emt 0:00:11]} g5 {[%emt 0:00:19]} 31. fxg5 {[%emt 0:00:02]} hxg5 {[%emt 0:00:01]} 32. Be4 {[%emt 0:00:01]} Qe6 {[%emt 0:00:03]} 33. Bxb7 {[%emt 0:00:05]} Nf5 {[%emt 0:00:01]} 34. Rxd8+ {[%emt 0:00:01]} 1-0